bitfinex-derivatives/quotes_BTCF0:USTF0_20230102
["timestamp","ask_amount","ask_price","bid_price","bid_amount"]
[1672627031306,3.47471148,16585.0,16584.0,4.70298407]
[1672627034360,3.47471148,16585.0,16584.0,5.29212009]
[1672627035620,3.47471148,16585.0,16584.0,4.79309075]
[1672627035835,3.47471148,16585.0,16584.0,5.29212078]
[1672627036675,3.47471148,16585.0,16584.0,4.61256762]
[1672627037717,3.47471148,16585.0,16584.0,4.70298096]
[1672627038244,3.47471148,16585.0,16584.0,4.61256762]
[1672627041815,3.47471148,16585.0,16584.0,4.56736443]
[1672627042878,3.47471148,16585.0,16584.0,4.41626443]
[1672627048962,3.47471148,16585.0,16584.0,4.5518697]
[1672627049806,3.47471148,16585.0,16584.0,4.41626443]
[1672627050015,3.47471148,16585.0,16584.0,4.5518697]
[1672627053388,3.47471148,16585.0,16584.0,4.46146762]
[1672627054113,3.47471148,16585.0,16584.0,5.14100546]
[1672627054535,3.47471148,16585.0,16584.0,5.00540019]
[1672627054758,3.47471148,16585.0,16584.0,5.14098237]
[1672627055070,3.47471148,16585.0,16584.0,5.14095934]
[1672627055694,3.47471148,16585.0,16584.0,4.64194463]
[1672627056116,3.47471148,16585.0,16584.0,4.4614215]
[1672627056436,3.47471148,16585.0,16584.0,5.14095838]
[1672627056748,3.47471148,16585.0,16584.0,5.00539978]
[1672627056954,3.47471148,16585.0,16584.0,5.30609978]
[1672627058849,3.47471148,16585.0,16584.0,0.30609978]
[1672627059065,3.47471148,16585.0,16584.0,0.85689978]
[1672627059911,3.47471148,16585.0,16584.0,4.62689978]
[1672627068324,3.47471148,16585.0,16584.0,4.32619978]
[1672627068539,3.47471148,16585.0,16584.0,4.62689978]
[1672627070853,3.47471148,16585.0,16584.0,4.32619978]
[1672627071064,3.47471148,16585.0,16584.0,4.62689978]
[1672627071273,3.47471148,16585.0,16584.0,4.32619978]
[1672627071476,3.47471148,16585.0,16584.0,4.62689978]
[1672627071898,3.47471148,16585.0,16584.0,4.75702093]
[1672627074632,3.47471148,16585.0,16584.0,4.45632093]
[1672627074856,3.47471148,16585.0,16584.0,4.75702093]
[1672627075576,3.47471148,16585.0,16584.0,4.45632093]
[1672627075779,3.47471148,16585.0,16584.0,4.75702093]
[1672627077673,3.47471148,16585.0,16584.0,4.45632093]
[1672627077980,3.47471148,16585.0,16584.0,4.75702093]
[1672627078189,3.46071148,16585.0,16584.0,4.57632093]
[1672627078633,3.46071148,16585.0,16584.0,4.87702093]
[1672627079241,3.46071148,16585.0,16584.0,4.57632093]
[1672627079562,3.45871148,16585.0,16584.0,5.12050701]
[1672627079767,3.46071148,16585.0,16584.0,5.24050701]
[1672627079975,3.46071148,16585.0,16584.0,4.93980701]
[1672627080189,3.46071148,16585.0,16584.0,5.24050701]
[1672627080920,3.46071148,16585.0,16584.0,4.93980701]
[1672627081121,3.46071148,16585.0,16584.0,5.24050701]
[1672627083543,3.46071148,16585.0,16584.0,4.93980701]
[1672627083761,3.46071148,16585.0,16584.0,5.24050701]
[1672627086807,3.46071148,16585.0,16584.0,5.37605045]
[1672627087121,3.46071148,16585.0,16584.0,5.37605863]
[1672627087329,3.46071148,16585.0,16584.0,5.24050701]
[1672627087536,3.46071148,16585.0,16584.0,5.37606038]
[1672627088164,3.46071148,16585.0,16584.0,4.87705337]
[1672627088375,3.46071148,16585.0,16584.0,5.37605861]
[1672627088585,3.46071148,16585.0,16584.0,4.87705337]
[1672627088904,3.46071148,16585.0,16584.0,5.05778809]
[1672627089117,3.46071148,16585.0,16584.0,5.55679433]
[1672627089748,3.46071148,16585.0,16584.0,5.25609433]
[1672627090069,3.46071148,16585.0,16584.0,5.55679433]
[1672627090694,3.46071148,16585.0,16584.0,5.42124096]
[1672627094368,3.46071148,16585.0,16584.0,5.4667593]
[1672627094783,3.46071148,16585.0,16584.0,5.6475664]
[1672627094993,3.46071148,16585.0,16584.0,5.4667593]
[1672627095204,3.46071148,16585.0,16584.0,5.42131153]
[1672627102893,3.46071148,16585.0,16584.0,5.57241153]
[1672627103620,3.46071148,16585.0,16584.0,5.27171153]
[1672627103831,3.46071148,16585.0,16584.0,5.57241153]
[1672627104049,3.46071148,16585.0,16584.0,5.27171153]
[1672627105630,3.46071148,16585.0,16584.0,4.90831912]
[1672627105840,3.46071148,16585.0,16584.0,4.81793277]
[1672627106364,3.46071148,16585.0,16584.0,4.68231894]
[1672627106573,3.46071148,16585.0,16584.0,4.81793277]
[1672627106999,3.46071148,16585.0,16584.0,4.68231894]
[1672627109413,3.46071148,16585.0,16584.0,4.5919]
[1672627109942,3.46071148,16585.0,16584.0,4.59167828]
[1672627114249,3.46071148,16585.0,16584.0,4.44087828]
[1672627116981,3.46071148,16585.0,16584.0,4.53129722]
[1672627117404,3.46071148,16585.0,16584.0,4.44087828]
[1672627124441,3.76141148,16585.0,16584.0,4.44087828]
[1672627125072,3.46071148,16585.0,16584.0,4.44087828]
[1672627125280,3.76141148,16585.0,16584.0,4.44087828]
[1672627128744,3.75941148,16585.0,16584.0,4.32087828]
[1672627128955,3.75941148,16585.0,16584.0,4.43287828]
[1672627128956,3.76241148,16585.0,16584.0,4.43287828]
[1672627129377,3.75941148,16585.0,16584.0,4.32087828]
[1672627129590,3.79741148,16585.0,16584.0,4.32487828]
[1672627130743,3.76770148,16585.0,16584.0,4.32487828]
[1672627130949,3.46700148,16585.0,16584.0,4.32487828]
[1672627137150,3.46700148,16585.0,16584.0,4.41529722]
[1672627137992,3.46700148,16585.0,16584.0,4.32487828]
[1672627139045,3.46700148,16585.0,16584.0,4.41529722]
[1672627139467,3.46700148,16585.0,16584.0,4.32487828]
[1672627147042,3.46700148,16585.0,16584.0,4.41529722]
[1672627150931,3.46700148,16585.0,16584.0,4.32487828]
[1672627151459,3.46700148,16585.0,16584.0,4.41529722]
[1672627154393,3.46700148,16585.0,16584.0,4.32487828]
[1672627155447,3.46700148,16585.0,16584.0,4.41529722]
[1672627161851,3.46700148,16585.0,16584.0,4.55091105]
[1672627163963,3.46700148,16585.0,16584.0,4.46049211]
[1672627164279,3.46700148,16585.0,16584.0,4.55087296]
[1672627165225,3.46700148,16585.0,16584.0,4.46049211]
[1672627166591,3.46700148,16585.0,16584.0,4.55087774]
[1672627166809,3.46700148,16585.0,16584.0,4.46049211]
[1672627169320,3.46700148,16585.0,16584.0,4.55088275]
[1672627169530,3.46700148,16585.0,16584.0,4.41526892]
[1672627177108,3.46700148,16585.0,16584.0,4.46049211]
[1672627181317,3.46700148,16585.0,16584.0,4.6412974]
[1672627181521,3.46700148,16585.0,16584.0,4.46049211]
[1672627183095,3.46700148,16585.0,16584.0,4.46041366]
[1672627185521,3.46700148,16585.0,16584.0,4.64121895]
[1672627185727,3.46700148,16585.0,16584.0,5.14024265]
[1672627186146,3.46700148,16585.0,16584.0,5.14024276]
[1672627186357,3.46700148,16585.0,16584.0,4.46041366]
[1672627187095,3.46700148,16585.0,16584.0,4.64121895]
[1672627187307,3.46700148,16585.0,16584.0,5.14024899]
[1672627187721,3.46700148,16585.0,16584.0,4.46041366]
[1672627188456,3.46700148,16585.0,16584.0,4.64121895]
[1672627188775,3.46700148,16585.0,16584.0,4.46041366]
[1672627189220,3.46700148,16585.0,16584.0,4.64121895]
[1672627190269,3.46700148,16585.0,16584.0,4.46041366]
[1672627190802,3.46700148,16585.0,16584.0,4.64121895]
[1672627192160,3.46700148,16585.0,16584.0,4.55080867]
[1672627195740,3.46700148,16585.0,16584.0,4.46041366]
[1672627195935,3.46700148,16585.0,16584.0,4.55082856]
[1672627196143,3.46700148,16585.0,16584.0,4.46041366]
[1672627196890,3.46700148,16585.0,16584.0,4.76111366]
[1672627197516,3.46700148,16585.0,16584.0,4.85152828]
[1672627197732,3.46700148,16585.0,16584.0,4.76111366]
[1672627198571,3.46700148,16585.0,16584.0,4.46041366]
[1672627199514,3.46700148,16585.0,16584.0,5.14025162]
[1672627200568,3.46700148,16585.0,16584.0,5.00463188]
[1672627201727,3.46700148,16585.0,16584.0,5.14024756]
[1672627201926,3.46700148,16585.0,16584.0,5.00463188]
[1672627202141,3.46700148,16585.0,16584.0,5.14024896]
[1672627202981,3.46700148,16585.0,16584.0,5.00463188]
[1672627203194,3.46700148,16585.0,16584.0,4.64122625]
[1672627203619,3.46700148,16585.0,16584.0,4.46042096]
[1672627205610,3.46700148,16585.0,16584.0,4.64122625]
[1672627206027,3.46700148,16585.0,16584.0,5.1402445]
[1672627206445,3.46700148,16585.0,16584.0,5.14024454]
[1672627206654,3.46700148,16585.0,16584.0,5.0046301]
[1672627207078,3.46700148,16585.0,16584.0,4.46041292]
[1672627207926,3.46700148,16585.0,16584.0,5.1402354]
[1672627208655,3.46700148,16585.0,16584.0,4.46041292]
[1672627210753,3.46700148,16585.0,16584.0,4.55081966]
[1672627211393,3.46700148,16585.0,16584.0,4.46041292]
[1672627212866,3.46700148,16585.0,16584.0,5.29003229]
[1672627213073,3.46700148,16585.0,16584.0,5.29001122]
[1672627213289,3.46700148,16585.0,16584.0,5.28998547]
[1672627213492,3.46700148,16585.0,16584.0,5.1544192]
[1672627214548,3.46700148,16585.0,16584.0,5.38067226]
[1672627214759,3.46700148,16585.0,16584.0,5.68137226]
[1672627215074,3.46700148,16585.0,16584.0,5.4551192]
[1672627215701,3.46700148,16585.0,16584.0,5.68137226]
[1672627216128,3.46700148,16585.0,16584.0,5.4551192]
[1672627217176,3.46700148,16585.0,16584.0,5.68137226]
[1672627217912,3.46700148,16585.0,16584.0,5.50056697]
[1672627218122,3.46700148,16585.0,16584.0,5.68127027]
[1672627218322,3.46700148,16585.0,16584.0,5.50056697]
[1672627218535,3.46700148,16585.0,16584.0,5.45501686]
[1672627219804,3.46700148,16585.0,16584.0,5.68126992]
[1672627220016,3.46700148,16585.0,16584.0,5.50056697]
[1672627220227,3.46700148,16585.0,16584.0,5.68124864]
[1672627220854,3.46700148,16585.0,16584.0,5.45499558]
[1672627222013,3.46700148,16585.0,16584.0,5.15429558]
[1672627222216,3.46700148,16585.0,16584.0,5.45499558]
[1672627224435,3.46700148,16585.0,16584.0,5.15429558]
[1672627224648,3.46700148,16585.0,16584.0,5.45499558]
[1672627225267,3.46700148,16585.0,16584.0,5.15429558]
[1672627225793,3.46700148,16585.0,16584.0,5.45499558]
[1672627227682,3.46700148,16585.0,16584.0,5.15429558]
[1672627228110,3.46700148,16585.0,16584.0,5.45499558]
[1672627229573,3.46700148,16585.0,16584.0,4.91082025]
[1672627230205,3.46700148,16585.0,16584.0,4.91075418]
[1672627232419,3.46700148,16585.0,16584.0,5.45492282]
[1672627237045,3.46700148,16585.0,16584.0,5.68117588]
[1672627237258,3.46700148,16585.0,16584.0,5.50049421]
[1672627238203,3.46700148,16585.0,16584.0,5.68118286]
[1672627238724,3.46700148,16585.0,16584.0,5.4549298]
[1672627239681,3.46700148,16585.0,16584.0,5.68118286]
[1672627243553,3.46700148,16585.0,16584.0,5.19979421]
[1672627243769,3.46700148,16585.0,16584.0,5.50049421]
[1672627244609,3.46700148,16585.0,16584.0,5.45495155]
[1672627245764,3.46700148,16585.0,16584.0,5.15425155]
[1672627246186,3.46700148,16585.0,16584.0,5.45495155]
[1672627249339,3.4375045,16585.0,16584.0,5.45495155]
[1672627251758,3.4375045,16585.0,16584.0,5.15425155]
[1672627252067,3.4375045,16585.0,16584.0,5.50049421]
[1672627252277,3.4375045,16585.0,16584.0,6.1242404]
[1672627259525,3.4375045,16585.0,16584.0,6.30501819]
[1672627259740,3.4375045,16585.0,16584.0,5.681272]
[1672627260052,3.4375045,16585.0,16584.0,5.50049421]
[1672627261107,3.4375045,16585.0,16584.0,5.68127187]
[1672627262895,3.4375045,16585.0,16584.0,5.45501881]
[1672627266996,3.4375045,16585.0,16584.0,5.15431881]
[1672627267205,3.4375045,16585.0,16584.0,5.50049421]
[1672627267417,3.4375045,16585.0,16584.0,6.12424282]
[1672627268360,3.4375045,16585.0,16584.0,5.82354282]
[1672627268573,3.4375045,16585.0,16584.0,6.12424282]
[1672627269407,3.4375045,16585.0,16584.0,5.50049421]
[1672627270249,3.4375045,16585.0,16584.0,5.68129042]
[1672627271302,3.4375045,16585.0,16584.0,5.38059042]
[1672627271512,3.4375045,16585.0,16584.0,5.68129042]
[1672627273613,3.4375045,16585.0,16584.0,5.45503736]
[1672627274560,3.4375045,16585.0,16584.0,5.09162502]
[1672627274769,3.4375045,16585.0,16584.0,4.79092502]
[1672627275181,3.4375045,16585.0,16584.0,5.09162502]
[1672627275719,3.4375045,16585.0,16584.0,5.59063709]
[1672627277083,3.4375045,16585.0,16584.0,5.09162502]
[1672627277401,3.4375045,16585.0,16584.0,5.59063599]
[1672627277924,3.4375045,16585.0,16584.0,5.45504094]
[1672627278129,3.4375045,16585.0,16584.0,5.59062634]
[1672627278762,3.4375045,16585.0,16584.0,5.59062843]
[1672627278973,3.4375045,16585.0,16584.0,5.09161537]
[1672627279180,3.4375045,16585.0,16584.0,5.59062856]
[1672627279394,3.4375045,16585.0,16584.0,4.91081916]
[1672627280232,3.4375045,16585.0,16584.0,5.09161537]
[1672627280437,3.4375045,16585.0,16584.0,4.91081916]
[1672627280863,3.4375045,16585.0,16584.0,4.61011916]
[1672627281068,3.4375045,16585.0,16584.0,4.91081916]
[1672627281284,3.4375045,16585.0,16584.0,4.61011916]
[1672627281602,3.4375045,16585.0,16584.0,5.09161537]
[1672627281918,3.4375045,16585.0,16584.0,4.79091537]
[1672627282117,3.4375045,16585.0,16584.0,5.45504306]
[1672627288544,3.4375045,16585.0,16584.0,5.15434306]
[1672627289269,3.4375045,16585.0,16584.0,5.45504306]
[1672627289479,3.4375045,16585.0,16584.0,5.15434306]
[1672627289690,3.4375045,16585.0,16584.0,5.09159505]
[1672627290111,3.4375045,16585.0,16584.0,5.28990638]
[1672627290327,3.4375045,16585.0,16584.0,5.59060638]
[1672627291686,3.4375045,16585.0,16584.0,4.91079884]
[1672627294526,3.4375045,16585.0,16584.0,4.61009884]
[1672627294733,3.4375045,16585.0,16584.0,4.91079884]
[1672627296212,3.4375045,16585.0,16584.0,4.91058868]
[1672627297152,3.4375045,16585.0,16584.0,5.45483577]
[1672627299049,3.4375045,16585.0,16584.0,5.15413577]
[1672627299252,3.4375045,16585.0,16584.0,5.45483577]
[1672627299888,3.4375045,16585.0,16584.0,5.15413577]
[1672627300095,3.4375045,16585.0,16584.0,5.45483577]
[1672627301884,3.4375045,16585.0,16584.0,5.15413577]
[1672627302095,3.4375045,16585.0,16584.0,5.45483577]
[1672627304619,3.4375045,16585.0,16584.0,5.59042923]
[1672627305881,3.4375045,16585.0,16584.0,5.09141327]
[1672627306089,3.4375045,16585.0,16584.0,5.59042785]
[1672627307351,3.4375045,16585.0,16584.0,5.45483439]
[1672627310918,3.4375045,16585.0,16584.0,5.15413439]
[1672627311237,3.4375045,16585.0,16584.0,5.45483439]
[1672627311976,3.4375045,16585.0,16584.0,5.15413439]
[1672627312287,3.4375045,16585.0,16584.0,5.68110495]
[1672627312497,3.4375045,16585.0,16584.0,5.50029124]
[1672627314699,3.4375045,16585.0,16584.0,5.68110012]
[1672627314909,3.4375045,16585.0,16584.0,5.50029124]
[1672627316914,3.4375045,16585.0,16584.0,5.6810941]
[1672627317121,3.4375045,16585.0,16584.0,5.50029124]
[1672627317436,3.4375045,16585.0,16584.0,5.3803944]
[1672627317637,3.4375045,16585.0,16584.0,5.50029124]
[1672627319854,3.4375045,16585.0,16584.0,5.68109274]
[1672627320378,3.4375045,16585.0,16584.0,5.50029124]
[1672627324580,3.4375045,16585.0,16584.0,5.19959124]
[1672627324790,3.4375045,16585.0,16584.0,5.50029124]
[1672627325420,3.4375045,16585.0,16584.0,6.12404016]
[1672627325632,3.4375045,16585.0,16584.0,5.19959124]
[1672627325846,3.4375045,16585.0,16584.0,5.50029124]
[1672627327204,3.4375045,16585.0,16584.0,5.6810508]
[1672627328579,3.4375045,16585.0,16584.0,5.50029124]
[1672627329105,3.4375045,16585.0,16584.0,5.68104126]
[1672627330370,3.4375045,16585.0,16584.0,5.50029124]
[1672627330891,3.4375045,16585.0,16584.0,5.68103661]
[1672627331624,3.4375045,16585.0,16584.0,5.50029124]
[1672627332150,3.4375045,16585.0,16584.0,5.68104061]
[1672627333513,3.4375045,16585.0,16584.0,5.45478755]
[1672627334358,3.4375045,16585.0,16584.0,5.68104061]
[1672627334778,3.4375045,16585.0,16584.0,5.50029124]
[1672627338669,3.4375045,16585.0,16584.0,5.68103937]
[1672627338883,3.4375045,16585.0,16584.0,5.50029124]
[1672627339394,3.4375045,16585.0,16584.0,6.12403975]
[1672627340240,3.3995045,16585.0,16584.0,6.12003975]
[1672627340453,3.4025045,16585.0,16584.0,6.12003975]
[1672627340875,3.3995045,16585.0,16584.0,6.12003975]
[1672627341077,3.4015045,16585.0,16584.0,6.20003975]
[1672627341287,3.3995045,16585.0,16584.0,6.12003975]
[1672627341498,3.4025045,16585.0,16584.0,6.12003975]
[1672627343082,3.3995045,16585.0,16584.0,6.12003975]
[1672627343396,3.3995045,16585.0,16584.0,5.57629124]
[1672627343397,3.4015045,16585.0,16584.0,5.57629124]
[1672627346126,3.4015045,16585.0,16584.0,6.20004217]
[1672627346330,3.4015045,16585.0,16584.0,5.57629124]
[1672627349809,3.4015045,16585.0,16584.0,5.27559124]
[1672627350018,3.4015045,16585.0,16584.0,5.27547749]
[1672627350232,3.4015045,16585.0,16584.0,5.57617749]
[1672627351921,3.4015045,16585.0,16584.0,6.19992969]
[1672627352129,3.4015045,16585.0,16584.0,6.19993013]
[1672627352647,3.4015045,16585.0,16584.0,5.57617749]
[1672627353811,3.4015045,16585.0,16584.0,6.19992876]
[1672627357382,3.4015045,16585.0,16584.0,5.89922876]
[1672627357591,3.4015045,16585.0,16584.0,6.19992876]
[1672627358964,3.4015045,16585.0,16584.0,5.89922876]
[1672627359175,3.4015045,16585.0,16584.0,6.19992876]
[1672627361590,3.4015045,16585.0,16584.0,5.57617749]
[1672627362222,3.4015045,16585.0,16584.0,6.19992502]
[1672627364954,3.4015045,16585.0,16584.0,5.89922502]
[1672627365271,3.4015045,16585.0,16584.0,6.19992502]
[1672627370943,3.4015045,16585.0,16584.0,5.89922502]
[1672627371149,3.4015045,16585.0,16584.0,6.19992502]
[1672627379041,3.4015045,16585.0,16584.0,5.89922502]
[1672627379250,3.4015045,16585.0,16584.0,6.19992502]
[1672627379990,3.4015045,16585.0,16584.0,5.97367196]
[1672627380408,3.4015045,16585.0,16584.0,6.19954661]
[1672627393974,3.4015045,16585.0,16584.0,5.97367196]
[1672627394393,3.4015045,16585.0,16584.0,6.19957645]
[1672627396285,3.4015045,16585.0,16584.0,6.19946325]
[1672627401124,3.4015045,16585.0,16584.0,5.89876325]
[1672627401324,3.4015045,16585.0,16584.0,6.19946325]
[1672627402803,3.4015045,16585.0,16584.0,5.89876325]
[1672627403121,3.4015045,16585.0,16584.0,6.19946325]
[1672627404686,3.4015045,16585.0,16584.0,5.89876325]
[1672627405000,3.4015045,16585.0,16584.0,6.19946325]
[1672627405422,3.4015045,16585.0,16584.0,5.89876325]
[1672627405639,3.4015045,16585.0,16584.0,6.19946325]
[1672627405850,3.4015045,16585.0,16584.0,5.89876325]
[1672627406056,3.4015045,16585.0,16584.0,6.19946325]
[1672627407101,3.4015045,16585.0,16584.0,5.89876325]
[1672627407314,3.4015045,16585.0,16584.0,6.19946325]
[1672627410887,3.4015045,16585.0,16584.0,5.89876325]
[1672627411100,3.4015045,16585.0,16584.0,6.19946325]
[1672627411835,3.4015045,16585.0,16584.0,5.89876325]
[1672627412047,3.4015045,16585.0,16584.0,6.19946325]
[1672627415718,3.4015045,16585.0,16584.0,5.89876325]
[1672627416252,3.4015045,16585.0,16584.0,6.19946325]
[1672627420024,3.4015045,16585.0,16584.0,5.89876325]
[1672627420234,3.4015045,16585.0,16584.0,6.19946325]
[1672627420668,3.37188983,16585.0,16584.0,6.19946325]
[1672627422447,3.37188983,16585.0,16584.0,5.89876325]
[1672627422656,3.37188983,16585.0,16584.0,6.19946325]
[1672627426953,3.37188983,16585.0,16584.0,5.75647262]
[1672627427490,3.37188983,16585.0,16584.0,5.75645428]
[1672627427699,3.37188983,16585.0,16584.0,5.57571572]
[1672627430958,3.37188983,16585.0,16584.0,6.19946962]
[1672627431580,3.37188983,16585.0,16584.0,5.57571572]
[1672627432007,3.37188983,16585.0,16584.0,6.19946478]
[1672627432428,3.37188983,16585.0,16584.0,5.57571572]
[1672627433055,3.37188983,16585.0,16584.0,6.19946644]
[1672627436630,3.37188983,16585.0,16584.0,5.89876644]
[1672627437060,3.37188983,16585.0,16584.0,6.19946644]
[1672627444312,3.37188983,16585.0,16584.0,5.89876644]
[1672627444508,3.37188983,16585.0,16584.0,6.19946644]
[1672627449983,3.37188983,16585.0,16584.0,5.97356195]
[1672627450193,3.37188983,16585.0,16584.0,5.89871358]
[1672627450525,3.37188983,16585.0,16584.0,5.97356195]
[1672627453352,3.37188983,16585.0,16584.0,6.19939285]
[1672627453562,3.37188983,16585.0,16584.0,5.97356195]
[1672627454829,3.37188983,16585.0,16584.0,5.67286195]
[1672627455040,3.37188983,16585.0,16584.0,6.19937249]
[1672627455355,3.37188983,16585.0,16584.0,5.97356195]
[1672627455565,3.37188983,16585.0,16584.0,5.67286195]
[1672627455771,3.37188983,16585.0,16584.0,5.97356195]
[1672627455981,3.37188983,16585.0,16584.0,5.67286195]
[1672627456194,3.37188983,16585.0,16584.0,5.97356195]
[1672627456825,3.37188983,16585.0,16584.0,6.19937218]
[1672627457038,3.37188983,16585.0,16584.0,5.97356195]
[1672627458712,3.37188983,16585.0,16584.0,6.19936014]
[1672627461025,3.37188983,16585.0,16584.0,5.97356195]
[1672627461348,3.37188983,16585.0,16584.0,6.19935773]
[1672627462293,3.37188983,16585.0,16584.0,5.97356195]
[1672627462503,3.37188983,16585.0,16584.0,6.19935477]
[1672627462714,3.37188983,16585.0,16584.0,5.97356195]
[1672627462916,3.37188983,16585.0,16584.0,6.19935509]
[1672627464705,3.37188983,16585.0,16584.0,6.19924308]
[1672627466812,3.37188983,16585.0,16584.0,5.89854308]
[1672627467238,3.37188983,16585.0,16584.0,6.19924308]
[1672627467547,3.37188983,16585.0,16584.0,6.19926745]
[1672627468490,3.37188983,16585.0,16584.0,5.97344994]
[1672627468810,3.37188983,16585.0,16584.0,6.19926253]
[1672627469330,3.37188983,16585.0,16584.0,5.97344994]
[1672627469756,3.37188983,16585.0,16584.0,6.19927201]
[1672627470381,3.37188983,16585.0,16584.0,5.97344994]
[1672627470593,3.37188983,16585.0,16584.0,6.1992783]
[1672627471015,3.37188983,16585.0,16584.0,5.97344994]
[1672627472069,3.37188983,16585.0,16584.0,5.67274994]
[1672627472274,3.37188983,16585.0,16584.0,5.97344994]
[1672627473742,3.37188983,16585.0,16584.0,5.67274994]
[1672627473956,3.37188983,16585.0,16584.0,5.97344994]
[1672627475954,3.37188983,16585.0,16584.0,5.67274994]
[1672627476165,3.37188983,16585.0,16584.0,5.97344994]
[1672627478779,3.37188983,16585.0,16584.0,5.67274994]
[1672627478989,3.37188983,16585.0,16584.0,5.97344994]
[1672627479520,3.37188983,16585.0,16584.0,5.67274994]
[1672627479726,3.37188983,16585.0,16584.0,5.97344994]
[1672627481842,3.37188983,16585.0,16584.0,5.67274994]
[1672627482258,3.37188983,16585.0,16584.0,5.97344994]
[1672627482888,3.37188983,16585.0,16584.0,5.67274994]
[1672627483208,3.37188983,16585.0,16584.0,5.97344994]
[1672627488561,3.37188983,16585.0,16584.0,5.67274994]
[1672627488771,3.37188983,16585.0,16584.0,5.97344994]
[1672627489826,3.37188983,16585.0,16584.0,5.67274994]
[1672627490135,3.37188983,16585.0,16584.0,5.97344994]
[1672627493919,3.37188983,16585.0,16584.0,5.67274994]
[1672627494130,3.37188983,16585.0,16584.0,5.97344994]
[1672627494345,3.37188983,16585.0,16584.0,6.12404994]
[1672627499913,3.37188983,16585.0,16584.0,6.34993557]
[1672627503065,3.37188983,16585.0,16584.0,6.04923557]
[1672627503389,3.37188983,16585.0,16584.0,6.34993557]
[1672627507581,3.37188983,16585.0,16584.0,6.04923557]
[1672627508002,3.37188983,16585.0,16584.0,6.34993557]
[1672627509061,3.37188983,16585.0,16584.0,6.04923557]
[1672627509265,3.37188983,16585.0,16584.0,6.34993557]
[1672627510847,3.37188983,16585.0,16584.0,6.04923557]
[1672627511052,3.37188983,16585.0,16584.0,6.34993557]
[1672627512943,3.37188983,16585.0,16584.0,6.12404994]
[1672627513363,3.37188983,16585.0,16584.0,6.34983275]
[1672627513788,3.37188983,16585.0,16584.0,6.12404994]
[1672627513987,3.37188983,16585.0,16584.0,6.34983316]
[1672627514199,3.37188983,16585.0,16584.0,6.12404994]
[1672627516088,3.37188983,16585.0,16584.0,6.34982776]
[1672627516301,3.37188983,16585.0,16584.0,6.12404994]
[1672627516510,3.37188983,16585.0,16584.0,6.34982441]
[1672627516732,3.37178473,16585.0,16584.0,6.34982441]
[1672627516943,3.37178473,16585.0,16584.0,6.12404994]
[1672627522298,3.37178473,16585.0,16584.0,5.82334994]
[1672627522510,3.37178473,16585.0,16584.0,6.12404994]
[1672627524705,3.3480253,16585.0,16584.0,7.03064994]
[1672627524919,3.33792138,16585.0,16584.0,7.30095689]
[1672627525130,3.3177842,16585.0,16584.0,7.66215685]
[1672627525765,3.3177842,16585.0,16584.0,7.39132405]
[1672627526085,0.30263332,16590.0,16585.0,1.4066]
[1672627526284,0.30263332,16590.0,16589.0,0.1511]
[1672627526494,0.5007,16591.0,16589.0,0.3511]
[1672627526704,0.3007,16591.0,16590.0,0.15]
[1672627527968,0.3187,16591.0,16590.0,0.16]
[1672627528493,0.6187,16591.0,16590.0,0.16]
[1672627529863,0.8187,16591.0,16590.0,0.16]
[1672627536784,0.518,16591.0,16590.0,0.16]
[1672627537008,0.8187,16591.0,16590.0,0.16]
[1672627542897,0.518,16591.0,16590.0,0.16]
[1672627543106,0.8187,16591.0,16590.0,0.16]
[1672627543314,4.8187,16591.0,16590.0,0.16]
[1672627546472,4.518,16591.0,16590.0,0.16]
[1672627546677,4.8187,16591.0,16590.0,0.16]
[1672627550893,4.518,16591.0,16590.0,0.16]
[1672627551104,4.8187,16591.0,16590.0,0.16]
[1672627554883,4.518,16591.0,16590.0,0.16]
[1672627555099,4.8187,16591.0,16590.0,0.16]
[1672627576547,4.518,16591.0,16590.0,0.16]
[1672627576864,4.8187,16591.0,16590.0,0.16]
[1672627578750,4.8187,16591.0,16590.0,0.1598525]
[1672627579803,4.518,16591.0,16590.0,0.1598525]
[1672627580127,4.8187,16591.0,16590.0,0.1598525]
[1672627586954,4.518,16591.0,16590.0,0.1598525]
[1672627587380,4.8187,16591.0,16590.0,0.1598525]
[1672627589898,4.518,16591.0,16590.0,0.1598525]
[1672627590111,4.8187,16591.0,16590.0,0.1598525]
[1672627591681,4.518,16591.0,16590.0,0.1598525]
[1672627591897,4.8187,16591.0,16590.0,0.1598525]
[1672627593477,4.8187,16591.0,16590.0,3.9298525]
[1672627593681,4.518,16591.0,16590.0,3.9298525]
[1672627593894,4.8187,16591.0,16590.0,3.9298525]
[1672627606631,4.518,16591.0,16590.0,3.9298525]
[1672627607045,4.8187,16591.0,16590.0,3.9298525]
[1672627613777,4.518,16591.0,16590.0,3.9298525]
[1672627613984,4.8187,16591.0,16590.0,3.9298525]
[1672627614300,4.8187,16591.0,16590.0,4.0809525]
[1672627614608,4.3187,16591.0,16590.0,4.0809525]
[1672627615760,4.018,16591.0,16590.0,4.0809525]
[1672627617246,4.018,16591.0,16590.0,4.3816525]
[1672627617455,3.987465,16591.0,16590.0,4.5327525]
[1672627619974,3.987465,16591.0,16590.0,4.45763538]
[1672627620185,3.987465,16591.0,16590.0,4.75833538]
[1672627620923,3.987465,16591.0,16590.0,4.45763538]
[1672627621138,3.987465,16591.0,16590.0,4.75833538]
[1672627625439,3.987465,16591.0,16590.0,4.62298565]
[1672627627433,3.987465,16591.0,16590.0,4.5327525]
[1672627635010,3.987465,16591.0,16590.0,4.62298565]
[1672627636266,3.987465,16591.0,16590.0,4.32228565]
[1672627637419,3.987465,16591.0,16590.0,4.45763538]
[1672627641199,3.987465,16591.0,16590.0,4.75833538]
[1672627642571,3.987465,16591.0,16590.0,4.2320525]
[1672627642776,3.987465,16591.0,16590.0,4.5327525]
[1672627645407,3.987465,16591.0,16590.0,4.2320525]
[1672627646035,3.987465,16591.0,16590.0,4.5327525]
[1672627647400,3.987465,16591.0,16590.0,4.62298565]
[1672627647612,3.987465,16591.0,16590.0,4.5327525]
[1672627647822,3.987465,16591.0,16590.0,4.62298565]
[1672627650030,3.987465,16591.0,16590.0,4.84856854]
[1672627650445,3.987465,16591.0,16590.0,5.34740823]
[1672627650651,3.987465,16591.0,16590.0,4.84856854]
[1672627650862,3.987465,16591.0,16590.0,5.34740723]
[1672627651188,3.987465,16591.0,16590.0,5.3474079]
[1672627651387,3.987465,16591.0,16590.0,5.21205817]
[1672627652027,3.987465,16591.0,16590.0,5.34738214]
[1672627652239,3.95731387,16591.0,16590.0,4.84854278]
[1672627652446,3.95731387,16591.0,16590.0,5.34738539]
[1672627653493,3.95731387,16591.0,16590.0,5.21206142]
[1672627654551,3.95731387,16591.0,16590.0,5.3474051]
[1672627654765,3.95731387,16591.0,16590.0,5.34740361]
[1672627655074,3.95731387,16591.0,16590.0,5.34740416]
[1672627655697,3.95731387,16591.0,16590.0,5.21206142]
[1672627656539,3.95731387,16591.0,16590.0,5.34741838]
[1672627656754,3.95731387,16591.0,16590.0,5.21206142]
[1672627658219,3.95731387,16591.0,16590.0,5.34743186]